fUST/lending_fUST_20260304
["ID","MTS","AMOUNT","RATE_DAILY","PERIOD"]
[407648032,1772609438565,-207.17698627,9.617e-05,2]
[407648034,1772609438574,-372.54565671,9.617e-05,2]
[407648035,1772609438583,-300.0,9.719e-05,2]
[407648036,1772609438592,-150.0,9.72e-05,2]
[407648037,1772609438602,-239.4590494,9.72e-05,2]
[407648038,1772609438611,-151.75558952,9.72e-05,2]
[407648040,1772609438620,-150.0,9.72e-05,2]
[407648042,1772609438629,-150.0,9.775e-05,2]
[407648044,1772609438638,-150.0,9.83e-05,2]
[407648046,1772609438647,-382.365616,9.853e-05,2]
[407648048,1772609438657,-150.0,9.884e-05,2]
[407648049,1772609438667,-500.0,9.899e-05,2]
[407648051,1772609438676,-500.0,9.899e-05,2]
[407648053,1772609438685,-500.0,9.899e-05,2]
[407648054,1772609438694,-500.0,9.899e-05,2]
[407648055,1772609438703,-500.0,9.899e-05,2]
[407648056,1772609438712,-500.0,9.899e-05,2]
[407648057,1772609438721,-42.85705434,9.899e-05,2]
[407648058,1772609438733,-457.14294566,9.899e-05,2]
[407648059,1772609438742,-500.0,9.899e-05,2]
[407648060,1772609438751,-503.38904603,9.899e-05,2]
[407648061,1772609438760,-500.0,9.899e-05,2]
[407648062,1772609438769,-500.0,9.899e-05,2]
[407648063,1772609438779,-500.0,9.899e-05,2]
[407648064,1772609438788,-229.77263248,9.899e-05,2]
[407648065,1772609438797,-500.0,9.899e-05,2]
[407648066,1772609438807,-597.05114188,9.899e-05,2]
[407648067,1772609438816,-500.0,9.899e-05,2]
[407648068,1772609438826,-174.40895628,9.899e-05,2]
[407648069,1772609438835,-500.0,9.899e-05,2]
[407648070,1772609438844,-500.0,9.899e-05,2]
[407648071,1772609438854,-500.0,9.899e-05,2]
[407648072,1772609438863,-500.0,9.899e-05,2]
[407648073,1772609438873,-331.35601915,9.899e-05,2]
[407648074,1772609438882,-500.0,9.899e-05,2]
[407648075,1772609438891,-500.0,9.899e-05,2]
[407648076,1772609438901,-325.60541605,9.899e-05,2]
[407648077,1772609438912,-174.39458395,9.899e-05,2]
[407648078,1772609438922,-500.0,9.899e-05,2]
[407648079,1772609438931,-153.38867137,9.899e-05,2]
[407648080,1772609438941,-500.0,9.899e-05,2]
[407648081,1772609438951,-349.83290457,9.899e-05,2]
[407648082,1772609439028,-150.16709543,9.899e-05,2]
[407648083,1772609439037,-8001.90296447,9.9e-05,2]
[407648100,1772609440839,-5552.97119489,9.9e-05,2]
[407648102,1772609440848,-1825.57814912,9.9e-05,2]
[407648105,1772609440868,-4536.58590593,9.9e-05,2]
[407648107,1772609440877,-27112.64319178,9.9e-05,2]
[407648109,1772609440888,-975.0,9.9e-05,2]
[407648143,1772609443909,-1050.51411143,9.9e-05,2]
[407648144,1772609443921,-4000.0,9.9e-05,2]
[407648145,1772609443947,-642.37844704,9.9e-05,2]
[407648160,1772609447067,-5000.0,9.801e-05,2]
[407648161,1772609447079,-2471.36944491,9.9e-05,2]
[407648162,1772609463071,-1298.42025008,9.801e-05,2]
[407648163,1772609463101,-300.0,9.899e-05,2]
[407648164,1772609463375,-1298.42025008,9.9e-05,2]
[407648165,1772609463398,-300.0,9.9e-05,2]
[407648166,1772609463482,-1787.47085234,9.9e-05,2]
[407648170,1772609956439,-500.0,9.606e-05,2]
[407648329,1772610372103,3030.0,9e-05,2]
[407648330,1772610605774,160.16377404,8.869e-05,2]
[407648332,1772610621701,5000.0,9e-05,2]
[407648383,1772610632608,-160.16377403,9.019e-05,2]
[407648384,1772610632618,-486.09717762,9.22e-05,2]
[407648386,1772610632628,-300.0,9.889e-05,2]
[407648389,1772610632637,-3823.4632399,9.89e-05,2]
[407648460,1772610638806,-283.8331788,9.89e-05,2]
[407648461,1772610638816,-2241.53325123,9.892e-05,2]
[407648462,1772610638830,-253.19172798,9.892e-05,2]
[407648473,1772610641337,-1719.26634701,9.892e-05,2]
[407648474,1772610641383,-1927.50146578,9.892e-05,2]
[407648475,1772610641392,-158.779,9.899e-05,2]
[407648476,1772610641402,-156.606,9.899e-05,2]
[407648477,1772610641411,-259.03955768,9.899e-05,2]
[407648478,1772610641420,-571.07867315,9.899e-05,2]
[407648479,1772610641430,-397.49530339,9.899e-05,2]
[407648480,1772610641705,-153.61572148,9.899e-05,2]
[407648481,1772610641717,-177.45012688,9.899e-05,2]
[407648482,1772610641727,-517.04318571,9.899e-05,2]
[407648483,1772610641736,-3824.12980683,9.9e-05,2]
[407648484,1772610641747,-380.36253887,9.9e-05,2]
[407648500,1772610644216,-5000.0,9.793e-05,2]
[407648501,1772610644226,-6239.05493606,9.9e-05,2]
[407648502,1772610644284,-38415.81711764,9.9e-05,2]
[407648503,1772610644296,-40468.2807315,9.9e-05,2]
[407648504,1772610644305,-82020.74715368,9.9e-05,2]
[407648505,1772610644316,-4599.58984901,9.9e-05,2]
[407648506,1772610644448,-5614.63541989,9.9e-05,2]
[407648507,1772610644459,-642.37844704,9.9e-05,2]
[407648508,1772610644469,-152.746357,9.9e-05,2]
[407648509,1772610644478,-170.81034398,9.9e-05,2]
[407648510,1772610644487,-151.0,9.9e-05,2]
[407648512,1772610644496,-151.0,9.9e-05,2]
[407648513,1772610644505,-185.45,9.9e-05,2]
[407648515,1772610644515,-1601.13737392,9.95e-05,2]
[407648517,1772610644524,-151.0,9.974e-05,2]
[407648519,1772610644533,-1957.856,9.974e-05,2]
[407648520,1772610644542,-2230.315306,9.974e-05,2]
[407648521,1772610644551,-500.0,9.994e-05,2]
[407648522,1772610644560,-291.61880939,9.994e-05,2]
[407648523,1772610644571,-208.38119061,9.994e-05,2]
[407648524,1772610644580,-500.0,9.994e-05,2]
[407648525,1772610644588,-500.0,9.994e-05,2]
[407648526,1772610644598,-201.70341644,9.994e-05,2]
[407648527,1772610644607,-500.0,9.994e-05,2]
[407648528,1772610644616,-500.0,9.994e-05,2]
[407648529,1772610644624,-99.26187092,9.994e-05,2]
[407648534,1772610646725,-400.73812908,9.994e-05,2]
[407648535,1772610646735,-168.3888056,9.994e-05,2]
[407648536,1772610646757,-500.0,9.994e-05,2]
[407648537,1772610646767,-174.61919141,9.994e-05,2]
[407648538,1772610646776,-557.5788265,9.994e-05,2]
[407648539,1772610646785,-500.0,9.994e-05,2]
[407648540,1772610646795,-181.08010149,9.994e-05,2]
[407648541,1772610646804,-250.0,9.994e-05,2]
[407648542,1772610646813,-500.0,9.994e-05,2]
[407648543,1772610646822,-187.78006525,9.994e-05,2]
[407648544,1772610646836,-200.52855091,9.994e-05,2]
[407648545,1772610646845,-194.72792766,9.994e-05,2]
[407648546,1772610646855,-500.0,9.994e-05,2]
[407648547,1772610646864,-500.0,9.994e-05,2]
[407648548,1772610646875,-201.93286099,9.994e-05,2]
[407648549,1772610646884,-500.0,9.994e-05,2]
[407648550,1772610646893,-209.40437684,9.994e-05,2]
[407648551,1772610646903,-250.0,9.994e-05,2]
[407648552,1772610646913,-500.0,9.994e-05,2]
[407648553,1772610646922,-168.3888056,9.994e-05,2]
[407648554,1772610646931,-217.15233878,9.994e-05,2]
[407648555,1772610646940,-151.0,9.994e-05,2]
[407648556,1772610646950,-500.0,9.994e-05,2]
[407648557,1772610646959,-225.18697532,9.994e-05,2]
[407648558,1772610646968,-500.0,9.994e-05,2]
[407648559,1772610646978,-233.51889341,9.994e-05,2]
[407648560,1772610646987,-500.0,9.994e-05,2]
[407648561,1772610646996,-242.15909246,9.994e-05,2]
[407648562,1772610647006,-251.11897888,9.994e-05,2]
[407648563,1772610647015,-260.4103811,9.994e-05,2]
[407648564,1772610647024,-500.0,9.994e-05,2]
[407648565,1772610647034,-270.0455652,9.994e-05,2]
[407648566,1772610647044,-500.0,9.994e-05,2]
[407648567,1772610647054,-280.03725112,9.994e-05,2]
[407648568,1772610647063,-290.39862941,9.994e-05,2]
[407648569,1772610647073,-301.1433787,9.994e-05,2]
[407648571,1772610647082,-461.67526834,9.994e-05,2]
[407648573,1772610647091,-500.0,9.994e-05,2]
[407648575,1772610647101,-500.0,9.994e-05,2]
[407648576,1772610647111,-500.0,9.994e-05,2]
[407648577,1772610647120,-500.0,9.994e-05,2]
[407648578,1772610647130,-158.54451069,9.994e-05,2]
[407648579,1772610647139,-500.0,9.994e-05,2]
[407648580,1772610647148,-250.0,9.994e-05,2]
[407648581,1772610647157,-500.0,9.994e-05,2]
[407648582,1772610647166,-250.0,9.994e-05,2]
[407648583,1772610647175,-500.0,9.994e-05,2]
[407648584,1772610647185,-250.0,9.994e-05,2]
[407648585,1772610647194,-250.0,9.994e-05,2]
[407648586,1772610647204,-250.0,9.994e-05,2]
[407648587,1772610647213,-250.0,9.994e-05,2]
[407648588,1772610647223,-250.0,9.994e-05,2]
[407648589,1772610647232,-250.0,9.994e-05,2]
[407648590,1772610647242,-250.0,9.994e-05,2]
[407648591,1772610647251,-250.0,9.994e-05,2]
[407648592,1772610647260,-164.74578131,9.994e-05,2]
[407648593,1772610647271,-500.0,9.994e-05,2]
[407648594,1772610647280,-500.0,9.994e-05,2]
[407648595,1772610647289,-500.0,9.994e-05,2]
[407648596,1772610647298,-500.0,9.994e-05,2]
[407648597,1772610647308,-500.0,9.994e-05,2]
[407648598,1772610647317,-500.0,9.994e-05,2]
[407648599,1772610647327,-500.0,9.994e-05,2]
[407648600,1772610647336,-500.0,9.994e-05,2]
[407648601,1772610647346,-500.0,9.994e-05,2]
[407648602,1772610647355,-500.0,9.994e-05,2]
[407648603,1772610647365,-151.0,9.994e-05,2]
[407648604,1772610647375,-546.49305356,9.999e-05,2]
[407648605,1772610647384,-14635.74718271,0.0001,2]
[407648615,1772610833920,1809.83622596,9e-05,2]
[407648616,1772610867708,3190.16,0.000157,120]
[407648625,1772611822678,5000.0,7.5e-05,2]
[407648666,1772611831754,-526.0,7.509e-05,2]
[407648668,1772611831764,-81.86819314,7.509e-05,2]
[407648670,1772611831776,-77.27685172,7.509e-05,2]
[407648672,1772611831785,-476.37523407,7.821e-05,2]
[407648674,1772611831795,-97.33128369,8.744e-05,2]
[407648676,1772611831807,-61.81376117,8.744e-05,2]
[407648677,1772611831817,-300.0,9.526e-05,2]
[407648679,1772611831827,-5366.0896369,9.527e-05,2]
[407648682,1772611831844,-1421.2607696,9.527e-05,2]
[407648820,1772611837883,-4693.44146329,9.527e-05,2]
[407648822,1772611837893,-689.0,9.712e-05,2]
[407648824,1772611837903,-351.0,9.712e-05,2]
[407648826,1772611837912,-228.24336982,9.712e-05,2]
[407648828,1772611837922,-351.0,9.712e-05,2]
[407648830,1772611837932,-351.0,9.712e-05,2]
[407648832,1772611837942,-351.0,9.712e-05,2]
[407648835,1772611837951,-351.0,9.712e-05,2]
[407648837,1772611837961,-351.0,9.712e-05,2]
[407648838,1772611837970,-351.0,9.712e-05,2]
[407648841,1772611837980,-351.0,9.712e-05,2]
[407648842,1772611837989,-469.63787718,9.712e-05,2]
[407648844,1772611837999,-351.0,9.712e-05,2]
[407648847,1772611838009,-351.0,9.712e-05,2]
[407648849,1772611838019,-363.98380452,9.712e-05,2]
[407648851,1772611838028,-162.921,9.712e-05,2]
[407648853,1772611838038,-151.0,9.717e-05,2]
[407648855,1772611838048,-151.0,9.717e-05,2]
[407648856,1772611838058,-151.0,9.717e-05,2]
[407648857,1772611838068,-151.0,9.717e-05,2]
[407648858,1772611838077,-151.0,9.717e-05,2]
[407648859,1772611838087,-151.0,9.717e-05,2]
[407648860,1772611838097,-151.0,9.717e-05,2]
[407648861,1772611838107,-151.0,9.717e-05,2]
[407648862,1772611838117,-292.0,9.717e-05,2]
[407648863,1772611838126,-150.0,9.72e-05,2]
[407648864,1772611838136,-235.48333813,9.775e-05,2]
[407648865,1772611838146,-562.1227762,9.821e-05,2]
[407648866,1772611838159,-500.0,9.826e-05,2]
[407648867,1772611838169,-500.0,9.826e-05,2]
[407648868,1772611838178,-25237.04720368,9.827e-05,2]
[407648869,1772611838187,-9000.0,9.899e-05,2]
[407648870,1772611838199,-9000.0,9.899e-05,2]
[407648871,1772611838210,-5275.53708045,9.899e-05,2]
[407648872,1772611838219,-385.77771741,9.899e-05,2]
[407648873,1772611838230,-8422.56316344,9.9e-05,2]
[407648874,1772611838241,-864679.73373078,9.9e-05,2]
[407648875,1772611838251,-143376.71158926,9.9e-05,2]
[407648876,1772611838261,-26529.42370239,9.9e-05,2]
[407648877,1772611838271,-28233.57272899,9.9e-05,2]
[407648879,1772611838281,-28476.97967449,9.9e-05,2]
[407648880,1772611838291,-532.10623248,9.9e-05,2]
[407648882,1772611838300,-930.92854896,9.9e-05,2]
[407648884,1772611838310,-826.80474251,9.9e-05,2]
[407648886,1772611838320,-1050.69776909,9.9e-05,2]
[407648888,1772611838329,-170.81034398,9.9e-05,2]
[407648890,1772611838339,-1957.856,9.903e-05,2]
[407648892,1772611838348,-2230.315306,9.903e-05,2]
[407648893,1772611838358,-1510.50526263,9.958e-05,2]
[407648895,1772611838368,-151.0,9.994e-05,2]
[407648898,1772611838377,-206.471536,9.994e-05,2]
[407648899,1772611838386,-334.85765049,9.994e-05,2]
[407648901,1772611838396,-500.0,9.994e-05,2]
[407648903,1772611838406,-468.57579902,9.994e-05,2]
[407648906,1772611838415,-168.3888056,9.994e-05,2]
[407648907,1772611838424,-174.61919141,9.994e-05,2]
[407648909,1772611838433,-557.5788265,9.994e-05,2]
[407648911,1772611838443,-181.08010149,9.994e-05,2]
[407648914,1772611838453,-187.78006525,9.994e-05,2]
[407648915,1772611838463,-194.72792766,9.994e-05,2]
[407648917,1772611838472,-201.93286099,9.994e-05,2]
[407648919,1772611838481,-209.40437684,9.994e-05,2]
[407648921,1772611838491,-217.15233878,9.994e-05,2]
[407648923,1772611838500,-500.0,9.994e-05,2]
[407648925,1772611838510,-151.0,9.994e-05,2]
[407648927,1772611838518,-168.3888056,9.994e-05,2]
[407648929,1772611838527,-500.0,9.994e-05,2]
[407648931,1772611838537,-225.18697532,9.994e-05,2]
[407648933,1772611838546,-461.67526834,9.994e-05,2]
[407648935,1772611838555,-500.0,9.994e-05,2]
[407648937,1772611838568,-500.0,9.994e-05,2]
[407648939,1772611838578,-233.51889341,9.994e-05,2]
[407648941,1772611838587,-500.0,9.994e-05,2]
[407648943,1772611838596,-242.15909246,9.994e-05,2]
[407648945,1772611838604,-500.0,9.994e-05,2]
[407648947,1772611838614,-251.11897888,9.994e-05,2]
[407648949,1772611838624,-500.0,9.994e-05,2]
[407648951,1772611838633,-260.4103811,9.994e-05,2]
[407648953,1772611838642,-500.0,9.994e-05,2]
[407648955,1772611838652,-270.0455652,9.994e-05,2]
[407648957,1772611838661,-500.0,9.994e-05,2]
[407648959,1772611838671,-280.03725112,9.994e-05,2]
[407648961,1772611838680,-500.0,9.994e-05,2]
[407648963,1772611838689,-500.0,9.994e-05,2]
[407648965,1772611838699,-290.39862941,9.994e-05,2]
[407648967,1772611838709,-500.0,9.994e-05,2]
[407648969,1772611838718,-301.1433787,9.994e-05,2]
[407648971,1772611838727,-500.0,9.994e-05,2]
[407648973,1772611838737,-500.0,9.994e-05,2]
[407648975,1772611838747,-500.0,9.994e-05,2]
[407648977,1772611838756,-500.0,9.994e-05,2]
[407648979,1772611838766,-500.0,9.994e-05,2]
[407648981,1772611838775,-3060.2864212,9.997e-05,2]
[407648983,1772611838785,-3121.9565296,9.997e-05,2]
[407648985,1772611838794,-1676.1191917,9.997e-05,2]
[407648987,1772611838804,-204713.80706513,0.0001,2]
[407648989,1772611838814,-613976.04838688,0.0001,2]
[407648991,1772611838823,-5467.4477604,0.0001,2]
[407649035,1772611839643,-1522.28706012,0.0001,2]
[407649036,1772611839656,-929.38394718,0.0001,2]
[407649037,1772611839679,-100161.5489743,0.0001,2]
[407649038,1772611839691,-67627.7816579,0.0001,2]
[407649050,1772611840541,-671.77936835,0.0001,2]
[407649051,1772611840554,-6423.94677741,0.0001,2]
[407649052,1772611840600,-3924.9608205,0.0001,2]
[407649073,1772611842992,-324.453074,0.0001,2]
[407649075,1772611843165,-2017.37791217,0.0001,2]
[407649090,1772611845854,-5000.0,9.9e-05,2]
[407649091,1772611845864,-81544.88163818,0.0001,2]
[407649092,1772611845874,-18809.77267067,0.0001,2]
[407649093,1772611845884,-14447.84,0.0001,2]
[407649094,1772611845894,-151.0,0.0001,2]
[407649095,1772611845905,-151.0,0.0001,2]
[407649096,1772611845916,-262.445806,0.0001,2]
[407649097,1772611845925,-815.23546894,0.0001,2]
[407649098,1772611845935,-9610.85709846,0.0001,2]
[407649099,1772611845945,-300.0,0.00010096,2]
[407649100,1772611845955,-300.0,0.00010096,2]
[407649101,1772611845965,-300.0,0.00010096,2]
[407649102,1772611845975,-300.0,0.00010096,2]
[407649103,1772611845985,-300.0,0.00010096,2]
[407649104,1772611845995,-300.0,0.00010096,2]
[407649105,1772611846005,-300.0,0.00010096,2]
[407649106,1772611846015,-300.0,0.00010096,2]
[407649107,1772611846025,-300.0,0.00010096,2]
[407649108,1772611846035,-300.0,0.00010096,2]
[407649109,1772611846044,-300.0,0.00010096,2]
[407649110,1772611846054,-300.0,0.00010096,2]
[407649111,1772611846063,-300.0,0.00010096,2]
[407649112,1772611846074,-300.0,0.00010096,2]
[407649113,1772611846085,-300.0,0.00010096,2]
[407649114,1772611846096,-600.0,0.00010096,2]
[407649115,1772611846106,-759.09985139,0.00010099,2]
[407649116,1772611846116,-818.44837612,0.00010262,2]
[407649117,1772611846126,-427.71,0.00010265,2]
[407649118,1772611846136,-382.365616,0.00010267,2]
[407649119,1772611846146,-363.7636259,0.0001029,2]
[407649120,1772611846155,-344.82428063,0.00010351,2]
[407649121,1772611846171,-455.17571937,0.00010351,2]
[407649122,1772611846182,-985.58111273,0.00010365,2]
[407649123,1772611846194,-160.71676,0.00010365,2]
[407649124,1772611846206,-2312.83697232,0.00010451,2]
[407649125,1772611846215,-208.26,0.00010457,2]
[407649126,1772611846224,-228.425,0.00010457,2]
[407649127,1772611846235,-420.0,0.00010479,2]
[407649128,1772611846245,-3637.51159122,0.000105,2]
[407649129,1772611846274,-9623.55161879,0.000105,2]
[407649138,1772612415480,224.33,4.5e-05,7]
[407649140,1772612596617,157.03,4.5e-05,7]
[407649142,1772612848417,160.35174,4.496e-05,2]
[407649143,1772612848477,160.35174,4.87e-05,2]
[407649144,1772612848555,160.35174,5.245e-05,2]
[407649145,1772612848752,160.35174,5.619e-05,2]
[407649146,1772612849174,160.35174,5.994e-05,2]
[407649147,1772612849400,160.35174,6.369e-05,2]
[407649148,1772612849572,160.35174,6.743e-05,2]
[407649149,1772612849761,160.35174,7.118e-05,2]
[407649150,1772612849961,160.35174,7.493e-05,2]
[407649158,1772612993528,1000.0,7.5e-05,30]
[407649159,1772613008772,1000.0,8.3e-05,30]
[407649160,1772613025484,1000.0,7.4e-05,30]
[407649163,1772613031945,-5000.0,7.634e-05,2]
[407649164,1772613031954,-67.15099042,7.711e-05,2]
[407649165,1772613031965,-1127.74715667,7.711e-05,2]
[407649166,1772613031993,-876.86326639,7.711e-05,2]
[407649257,1772613037725,648.94,7e-05,30]
[407649260,1772613038486,-5000.0,7.634e-05,2]
[407649261,1772613038495,-2054.70283839,7.711e-05,2]
[407649262,1772613038504,-529.0,7.711e-05,2]
[407649263,1772613038515,-5000.0,7.789e-05,2]
[407649264,1772613038528,-300.0,7.864e-05,2]
[407649265,1772613038536,-300.0,7.864e-05,2]
[407649266,1772613038546,-300.0,7.864e-05,2]
[407649267,1772613038555,-300.0,7.864e-05,2]
[407649268,1772613038566,-300.0,7.864e-05,2]
[407649269,1772613038575,-300.0,7.864e-05,2]
[407649270,1772613038584,-300.0,7.864e-05,2]
[407649271,1772613038592,-300.0,7.864e-05,2]
[407649272,1772613038601,-300.0,7.864e-05,2]
[407649273,1772613038610,-300.0,7.864e-05,2]
[407649274,1772613038619,-300.0,7.864e-05,2]
[407649275,1772613038628,-300.0,7.864e-05,2]
[407649276,1772613038637,-300.0,7.864e-05,2]
[407649277,1772613038646,-300.0,7.864e-05,2]
[407649278,1772613038655,-300.0,7.864e-05,2]
[407649279,1772613038663,-160.35174,7.867e-05,2]
[407649280,1772613038672,-600.0,8.02e-05,2]
[407649281,1772613038681,-160.35174,8.242e-05,2]
[407649282,1772613038690,-300.0,8.516e-05,2]
[407649283,1772613038699,-300.0,8.516e-05,2]
[407649284,1772613038708,-300.0,8.516e-05,2]
[407649285,1772613038717,-200.0,8.54e-05,2]
[407649286,1772613038726,-160.35174,8.616e-05,2]
[407649287,1772613038735,-720.0,8.822e-05,2]
[407649288,1772613038744,-488.90764043,8.823e-05,2]
[407649289,1772613038754,-1306.10432465,8.956e-05,2]
[407649290,1772613038763,-160.35174,8.991e-05,2]
[407649291,1772613038773,-7986.3884061,9.323e-05,2]
[407649292,1772613038782,-420.0,9.368e-05,2]
[407649293,1772613038791,-263.0,9.368e-05,2]
[407649294,1772613038801,-864.0,9.705e-05,2]
[407649295,1772613038810,-2230.315306,9.816e-05,2]
[407649296,1772613038819,-254.91041,9.979e-05,2]
[407649297,1772613038829,-209.28036938,0.0001,2]
[407649298,1772613038838,-180.9572825,0.0001,2]
[407649299,1772613038848,-1120.9519552,0.00010027,2]
[407649300,1772613038857,-800.0,0.00010268,2]
[407649301,1772613038866,-242.50908394,0.0001029,2]
[407649302,1772613038875,-587.0,0.00010304,2]
[407649303,1772613038884,-2312.83697232,0.00010364,2]
[407649304,1772613038894,-254.91041,0.000104,2]
[407649305,1772613038903,-220.02355034,0.00010456,2]
[407649306,1772613038913,-45811.85185382,0.000105,2]
[407649307,1772613038922,-162.921,0.00010562,2]
[407649308,1772613038931,-4716.0,0.00010657,5]
[407649309,1772613038940,-4743.66691488,0.00010658,2]
[407649310,1772613038950,-1000.0,0.00010675,2]
[407649311,1772613038959,-168.3888056,0.00010787,2]
[407649312,1772613038968,-174.61919141,0.00010787,2]
[407649313,1772613038977,-557.5788265,0.00010787,2]
[407649314,1772613038987,-181.08010149,0.00010787,2]
[407649315,1772613038996,-187.78006525,0.00010787,2]
[407649316,1772613039006,-194.72792766,0.00010787,2]
[407649317,1772613039016,-201.93286099,0.00010787,2]
[407649318,1772613039026,-209.40437684,0.00010787,2]
[407649319,1772613039035,-168.3888056,0.00010787,2]
[407649320,1772613039044,-217.15233878,0.00010787,2]
[407649321,1772613039054,-151.34200064,0.00010787,2]
[407649322,1772613039065,-225.18697532,0.00010787,2]
[407649323,1772613039075,-233.51889341,0.00010787,2]
[407649324,1772613039084,-242.15909246,0.00010787,2]
[407649325,1772613039094,-251.11897888,0.00010787,2]
[407649326,1772613039103,-260.4103811,0.00010787,2]
[407649327,1772613039112,-270.0455652,0.00010787,2]
[407649328,1772613039122,-461.67526834,0.00010787,2]
[407649329,1772613039131,-280.03725112,0.00010787,2]
[407649330,1772613039140,-290.39862941,0.00010787,2]
[407649331,1772613039149,-301.1433787,0.00010787,2]
[407649332,1772613039159,-250.0,0.00010787,2]
[407649333,1772613039167,-250.0,0.00010787,2]
[407649334,1772613039177,-500.0,0.00010787,2]
[407649335,1772613039186,-500.0,0.00010787,2]
[407649336,1772613039195,-500.0,0.00010787,2]
[407649337,1772613039205,-500.0,0.00010787,2]
[407649338,1772613039214,-500.0,0.00010787,2]
[407649339,1772613039224,-500.0,0.00010787,2]
[407649340,1772613039233,-500.0,0.00010787,2]
[407649341,1772613039243,-500.0,0.00010787,2]
[407649342,1772613039253,-500.0,0.00010787,2]
[407649343,1772613039263,-500.0,0.00010787,2]
[407649344,1772613039273,-500.0,0.00010787,2]
[407649345,1772613039283,-500.0,0.00010787,2]
[407649346,1772613039293,-500.0,0.00010787,2]
[407649347,1772613039303,-500.0,0.00010787,2]
[407649348,1772613039312,-500.0,0.00010787,2]
[407649349,1772613039322,-500.0,0.00010787,2]
[407649350,1772613039332,-500.0,0.00010787,2]
[407649351,1772613039343,-24884.42565408,0.000108,2]
[407649354,1772613039848,-2002.18581178,0.000108,2]
[407649355,1772613039860,-31805.72967605,0.000108,2]
[407649356,1772613039872,-5056.49508421,0.000108,2]
[407649460,1772613043126,-695.7,0.000108,2]
[407649468,1772613046188,-575.62523003,0.000108,2]
[407649469,1772613046201,-9623.55161879,0.000108,2]
[407649470,1772613046615,-19333.32361667,0.000108,2]
[407649471,1772613072255,275.8847889,9.322e-05,2]
[407649475,1772613750586,183.2,4.5e-05,2]
[407649476,1772613750947,183.2,4.5e-05,60]
[407649477,1772613849713,1212.0,7.5e-05,2]
[407649483,1772614196793,2161.63434,7.5e-05,2]
[407649507,1772614232052,-5000.0,7.425e-05,2]
[407649508,1772614232062,-2838.36566,7.5e-05,2]
[407649509,1772614232072,-526.0,7.5e-05,2]
[407649510,1772614232081,-353.52358126,7.596e-05,2]
[407649511,1772614232091,-491.08290404,7.712e-05,2]
[407649512,1772614232100,-300.0,7.986e-05,2]
[407649513,1772614232109,-420.0,8.785e-05,2]
[407649514,1772614232119,-314.4061805,8.801e-05,2]
[407649516,1772614232129,-627.25172878,9.251e-05,2]
[407649534,1772614238842,-572.74827122,9.251e-05,2]
[407649535,1772614238852,-300.0,9.252e-05,2]
[407649536,1772614238864,-300.0,9.252e-05,2]
[407649537,1772614238874,-300.0,9.252e-05,2]
[407649538,1772614238883,-300.0,9.252e-05,2]
[407649539,1772614238893,-300.0,9.252e-05,2]
[407649540,1772614238903,-300.0,9.252e-05,2]
[407649541,1772614238913,-300.0,9.252e-05,2]
[407649542,1772614238923,-300.0,9.252e-05,2]
[407649543,1772614238933,-300.0,9.252e-05,2]
[407649544,1772614238942,-300.0,9.252e-05,2]
[407649545,1772614238951,-300.0,9.252e-05,2]
[407649546,1772614238960,-300.0,9.252e-05,2]
[407649547,1772614238970,-300.0,9.252e-05,2]
[407649548,1772614238979,-300.0,9.252e-05,2]
[407649549,1772614238988,-300.0,9.252e-05,2]
[407649550,1772614238997,-947.38796173,9.252e-05,2]
[407649551,1772614239009,-2716.23165476,9.252e-05,2]
[407649552,1772614239131,-1774.36416101,9.252e-05,2]
[407649553,1772614239141,-600.0,9.436e-05,2]
[407649554,1772614239151,-587.0,9.663e-05,2]
[407649555,1772614239160,-579.47782677,9.712e-05,2]
[407649556,1772614239170,-275.8847889,9.874e-05,2]
[407649557,1772614239179,-500.0,9.874e-05,2]
[407649558,1772614239189,-500.0,9.874e-05,2]
[407649559,1772614239198,-500.0,9.874e-05,2]
[407649560,1772614239208,-500.0,9.874e-05,2]
[407649561,1772614239217,-500.0,9.874e-05,2]
[407649562,1772614239227,-500.0,9.874e-05,2]
[407649563,1772614239236,-441.54401433,9.874e-05,2]
[407649564,1772614239246,-5999.10522001,9.876e-05,2]
[407649565,1772614239255,-2230.315306,9.882e-05,2]